bitfinex-derivatives/quotes_ETHF0:USTF0_20210111
["timestamp","ask_amount","ask_price","bid_price","bid_amount"]
[1610335748310,1.50505441,1104.6,1102.5,3.3805]
[1610335749112,1.8582,1104.7,1102.5,3.3805]
[1610335749610,52.4522,1106.1,1102.5,3.3805]
[1610335749811,4.00959,1105.3,1104.2,4.00959]
[1610335750015,52.4522,1106.1,1104.2,4.00959]
[1610335750213,2.0905,1105.3,1104.2,4.00959]
[1610335750614,1.8366,1105.3,1104.2,4.00959]
[1610335751216,0.4621,1105.3,1104.2,4.00959]
[1610335751818,0.4621,1105.3,1105.2,4.00959]
[1610335752016,52.4522,1106.1,1105.2,4.00959]
[1610335752216,15.16453636,1108.8,1105.2,4.00959]
[1610335752617,15.20314453,1109.0,1105.2,4.00959]
[1610335753020,1.49389607,1108.7,1105.2,4.00959]
[1610335753418,3.74899607,1108.7,1105.2,4.00959]
[1610335753822,4.00959,1107.4,1107.1,4.00959]
[1610335754021,1.9936,1107.4,1107.1,4.00959]
[1610335755821,1.9936,1107.4,1107.3,4.00959]
[1610335756621,2.2551,1108.7,1107.3,4.00959]
[1610335757923,2.2551,1108.7,1108.6,4.00959]
[1610335758425,67.0977,1110.8,1108.6,4.00959]
[1610335759224,67.0977,1110.8,1106.7,69.789]
[1610335759424,4.00959,1106.8,1106.7,69.789]
[1610335759624,10.55017744,1108.7,1106.7,69.789]
[1610335759829,10.55017744,1108.7,1108.6,4.00959]
[1610335760029,13.36119491,1109.2,1108.6,4.00959]
[1610335760228,13.36119491,1109.2,1106.7,69.789]
[1610335760430,17.38994931,1109.4,1106.7,69.789]
[1610335761831,4.00959,1109.2,1108.6,4.00959]
[1610335762031,5.62939,1109.2,1106.7,69.789]
[1610335763935,4.00959,1109.0,1108.6,4.00959]
[1610335764135,4.00959,1109.0,1106.7,69.789]
[1610335764534,4.00959,1109.0,1106.6,2.1686]
[1610335764935,4.00959,1109.0,1106.2,71.4206]
[1610335765134,1.6198,1109.2,1106.2,71.4206]
[1610335767036,4.00959,1109.3,1106.2,71.4206]
[1610335767236,4.00959,1109.3,1106.6,70.8724]
[1610335767438,4.00959,1109.3,1106.6,72.4382]
[1610335767838,4.00959,1109.3,1109.2,4.00959]
[1610335768038,6.0639,1110.1,1107.7,2.0312]
[1610335768239,16.92953395,1110.8,1107.7,2.0312]
[1610335768839,1.48030979,1110.7,1107.7,2.0312]
[1610335769841,1.48030979,1110.7,1109.5,4.00959]
[1610335770240,2.0829,1110.8,1109.5,4.00959]
[1610335770640,15.31366742,1111.8,1109.5,4.00959]
[1610335771040,17.1062841,1111.9,1109.5,4.00959]
[1610335771240,1.7893,1111.9,1109.5,4.00959]
[1610335771639,11.33167171,1112.0,1109.5,4.00959]
[1610335771840,4.00959,1111.7,1111.2,4.00959]
[1610335772140,2.3836,1111.7,1111.2,4.00959]
[1610335772740,1.8065,1112.8,1111.2,4.00959]
[1610335772942,6.1188,1113.5,1111.2,4.00959]
[1610335773144,15.79416793,1113.9,1111.2,4.00959]
[1610335773345,18.33122153,1114.6,1111.2,4.00959]
[1610335773346,15.79278589,1114.0,1111.2,4.00959]
[1610335773741,15.81186534,1114.2,1111.2,4.00959]
[1610335773942,4.00959,1112.7,1112.1,4.00959]
[1610335774142,6.28009,1112.7,1112.1,4.00959]
[1610335775041,6.28009,1112.7,1110.8,1.5964]
[1610335775841,6.28009,1112.7,1112.1,4.00959]
[1610335776443,4.07,1112.7,1112.1,4.00959]
[1610335777042,2.9123,1112.7,1112.1,4.00959]
[1610335777244,6.1352,1114.4,1112.1,4.00959]
[1610335777644,52.7143,1114.6,1112.1,5.79359]
[1610335777845,4.00959,1114.3,1113.3,4.00959]
[1610335778245,7.35679,1114.3,1112.0,74.7954]
[1610335778644,1.3775479,1114.2,1112.0,74.7954]
[1610335779846,1.3775479,1114.2,1113.8,4.00959]
[1610335780045,1.5664,1114.3,1113.8,4.00959]
[1610335780245,0.4722,1114.3,1113.8,4.00959]
[1610335780446,4.00959,1114.9,1113.8,4.00959]
[1610335780846,3.45869,1116.3,1113.8,4.00959]
[1610335781046,16.07826025,1116.7,1113.8,4.00959]
[1610335781249,16.08659175,1116.9,1113.8,4.00959]
[1610335781850,4.00959,1116.0,1114.9,4.00959]
[1610335782052,5.80299,1116.0,1114.9,4.00959]
[1610335782452,5.80299,1116.0,1113.6,1.6611]
[1610335783854,4.00959,1115.3,1115.1,4.00959]
[1610335784052,6.18839,1115.3,1113.6,1.6611]
[1610335785753,6.18839,1115.3,1113.3,71.7834]
[1610335785952,4.00959,1115.1,1114.0,4.00959]
[1610335786153,4.00959,1115.1,1113.3,71.7834]
[1610335786552,4.00959,1115.1,1113.3,69.4785]
[1610335788053,4.00959,1114.3,1113.3,73.48809]
[1610335788253,6.50529,1114.3,1113.3,73.48809]
[1610335789053,2.4957,1114.3,1113.3,73.48809]
[1610335789957,2.4957,1114.3,1114.1,4.00959]
[1610335790855,2.1788,1115.3,1114.1,4.00959]
[1610335791255,1.7934,1116.0,1114.1,4.00959]
[1610335791455,16.29760961,1116.8,1114.1,4.00959]
[1610335791656,16.29760961,1116.8,1113.3,71.3748]
[1610335791854,18.67880961,1116.8,1113.3,71.3748]
[1610335792056,4.00959,1114.7,1113.9,4.00959]
[1610335792260,5.81459,1114.7,1113.9,4.00959]
[1610335792658,5.81459,1114.7,1113.3,69.4785]
[1610335793056,5.81459,1114.7,1113.1,1.7751]
[1610335793258,5.81459,1114.7,1111.9,3.8955]
[1610335794059,4.00959,1112.6,1112.0,4.00959]
[1610335794456,4.00959,1112.6,1111.9,3.8955]
[1610335795464,4.00959,1112.6,1111.9,2.0797]
[1610335795664,6.22989,1112.6,1110.6,1.8055]
[1610335796066,4.00959,1110.9,1110.6,1.8055]
[1610335796264,4.00959,1110.9,1110.2,4.00959]
[1610335796465,4.00959,1110.9,1110.1,64.525]
[1610335797271,4.00959,1110.9,1109.2,1.784]
[1610335797272,5.80499,1110.9,1109.2,1.784]
[1610335797469,5.80499,1110.9,1107.9,1.7901]
[1610335798069,1.7954,1110.9,1107.9,60.5036]
[1610335799069,3.5901,1110.9,1107.9,60.5036]
[1610335799471,1.7954,1110.9,1107.9,60.5036]
[1610335799974,4.00959,1110.4,1109.6,4.00959]
[1610335800174,4.00959,1110.4,1108.5,1.7887]
[1610335800374,4.00959,1110.4,1107.9,58.7135]
[1610335800573,5.83749,1110.4,1107.9,58.7135]
[1610335800772,4.00959,1110.4,1107.9,58.7135]
[1610335801376,4.00959,1110.4,1107.9,60.5046]
[1610335801675,5.78579,1110.4,1107.9,60.5046]
[1610335801874,34.00959,1110.4,1107.9,1.7911]
[1610335802077,4.00959,1108.0,1107.9,1.7911]
[1610335802275,4.00959,1108.0,1106.2,0.27636895]
[1610335802477,4.00959,1108.0,1105.7,6.28960853]
[1610335802678,4.00959,1108.0,1105.7,6.0131]
[1610335804077,4.00959,1105.8,1105.7,6.0131]
[1610335804278,4.00959,1105.8,1104.1,0.83032995]
[1610335804279,4.00959,1105.8,1104.1,0.27690348]
[1610335804479,6.30349,1105.8,1103.9,0.27699378]
[1610335804879,6.30349,1105.8,1103.5,0.2770592]
[1610335804880,69.205,1105.3,1103.5,0.2770592]
[1610335805281,69.205,1105.3,1103.2,0.27717836]
[1610335805480,69.205,1105.3,1103.1,0.27726239]
[1610335805882,69.205,1105.3,1102.8,6.27629376]
[1610335806085,1.8973,1104.7,1102.8,6.27629376]
[1610335806280,1.8973,1104.7,1102.8,5.999]
[1610335806880,54.8596,1103.9,1102.8,5.999]
[1610335807081,54.8596,1103.9,1102.0,0.27744893]
[1610335807284,54.8596,1103.9,1101.3,0.27764408]
[1610335807482,56.9953,1103.9,1101.3,0.27764408]
[1610335807687,56.9953,1103.9,1101.0,0.2777221]
[1610335807885,0.2767,1103.1,1100.9,0.27775964]
[1610335808084,4.00959,1101.3,1100.9,0.27775964]
[1610335808285,0.93953,1100.9,1100.5,0.55585292]
[1610335808692,0.93953,1100.9,1099.4,0.55615047]
[1610335808890,30.0,1101.2,1099.1,1.39037617]
[1610335809091,1.8801,1100.9,1099.4,2.2313]
[1610335809490,5.81769,1101.3,1099.4,2.2313]
[1610335809690,2.4254,1100.9,1099.4,2.2313]
[1610335810090,4.00959,1100.0,1099.4,2.2313]
[1610335811491,4.00959,1100.0,1097.6,0.55684877]
[1610335811691,4.00959,1100.0,1097.2,6.84479365]
[1610335811891,4.00959,1100.0,1097.3,0.55695353]
[1610335812091,1.5664,1100.1,1098.6,4.00959]
[1610335812291,1.5664,1100.1,1098.6,3.91509]
[1610335812492,1.5664,1100.1,1098.6,5.48839]
[1610335812892,1.6866,1100.6,1098.6,5.48839]
[1610335813492,64.3989,1100.3,1098.6,5.48839]
[1610335813692,66.7338,1100.3,1098.6,5.48839]
[1610335814092,4.00959,1099.6,1098.8,4.00959]
[1610335815893,13.14094539,1101.9,1098.8,4.00959]
[1610335816092,2.4688,1101.2,1099.1,6.42259]
[1610335816294,13.83239214,1102.2,1099.1,6.42259]
[1610335816494,13.876172,1102.4,1099.1,6.42259]
[1610335816893,73.27481831,1102.5,1099.1,6.42259]
[1610335817095,59.3985,1102.5,1099.1,6.42259]
[1610335818094,59.3985,1102.5,1100.1,4.00959]
[1610335818296,59.3985,1102.5,1100.1,6.40639]
[1610335819096,59.3985,1102.5,1100.1,2.3968]
[1610335820096,59.3985,1102.5,1100.2,4.00959]
[1610335821100,0.2767,1103.1,1100.2,4.00959]
[1610335822100,0.2767,1103.1,1101.6,4.00959]
[1610335822300,0.2767,1103.1,1101.6,6.47689]
[1610335823903,16.19419502,1106.9,1101.6,6.47689]
[1610335824104,4.00959,1103.8,1102.4,4.00959]
[1610335824904,70.4999,1105.1,1102.4,4.00959]
[1610335825104,70.4999,1105.1,1102.4,5.56299]
[1610335826203,4.00959,1104.6,1103.5,4.00959]
[1610335826406,4.00959,1104.6,1103.5,5.53829]
[1610335828205,4.00959,1104.6,1104.0,4.00959]
[1610335828407,70.4999,1105.1,1104.0,6.34809]
[1610335829509,66.9302,1105.1,1104.0,6.34809]
[1610335829709,64.5575,1106.1,1104.0,6.34809]
[1610335830108,4.00959,1105.7,1105.0,4.00959]
[1610335830308,64.5575,1106.1,1105.0,4.00959]
[1610335830508,64.5575,1106.1,1105.0,5.85739]
[1610335832208,64.5575,1106.1,1105.0,1.8478]
[1610335832909,4.00959,1106.6,1105.0,1.8478]
[1610335834111,4.00959,1105.3,1105.0,1.8478]
[1610335835109,4.00959,1105.3,1104.0,2.3385]
[1610335835310,4.00959,1105.3,1103.5,1.5287]
[1610335835509,4.00959,1105.3,1101.1,0.27760239]
[1610335835710,4.00959,1105.3,1100.9,0.27769908]
[1610335835910,4.00959,1105.3,1100.6,0.27781652]
[1610335836110,4.00959,1102.2,1101.9,4.00959]
[1610335836310,4.00959,1102.2,1100.2,0.27788602]
[1610335836511,4.00959,1102.2,1100.1,0.55577205]
[1610335836512,4.00959,1102.2,1100.1,0.27790954]
[1610335836911,4.00959,1102.2,1099.7,0.27798727]
[1610335837311,4.00959,1102.2,1099.5,0.27803711]
[1610335837911,4.00959,1102.2,1099.3,0.2781512]
[1610335838112,4.00959,1101.1,1100.0,4.00959]
[1610335838711,2.2449,1103.0,1100.0,4.00959]
[1610335838911,2.2449,1103.0,1100.0,5.80859]
[1610335839312,2.2449,1103.0,1100.0,1.799]
[1610335840113,4.00959,1100.1,1100.0,1.799]
[1610335840313,4.00959,1100.1,1098.0,9.99799]
[1610335840514,4.00959,1100.1,1098.0,4.00959]
[1610335841116,5.60319,1100.1,1098.0,4.00959]
[1610335842116,4.00959,1098.8,1098.6,4.00959]
[1610335842317,4.00959,1098.8,1096.8,0.27871887]
[1610335842517,4.00959,1098.8,1098.4,69.4988]
[1610335842917,2.207,1099.7,1098.4,69.4988]
[1610335843720,60.965,1099.6,1098.3,1.8]
[1610335844121,4.00959,1098.4,1098.3,1.8]
[1610335844323,4.00959,1098.4,1098.3,1.501]
[1610335844722,4.00959,1098.4,1098.3,1.3516]
[1610335845321,4.00959,1098.4,1096.3,0.55766542]
[1610335845322,4.00959,1098.4,1096.3,0.27883751]
[1610335845724,2.4004,1099.2,1096.2,0.27882862]
[1610335846124,4.00959,1098.8,1097.7,4.00959]
[1610335847125,4.00959,1098.8,1096.2,1.96817394]
[1610335847526,4.00959,1098.8,1096.2,1.6894]
[1610335848126,4.00959,1097.8,1097.0,4.00959]
[1610335848526,4.00959,1097.8,1096.2,1.6894]
[1610335849328,4.00959,1097.8,1095.8,6.2484]
[1610335849529,7.42579,1097.8,1095.8,6.2484]
[1610335850230,4.00959,1095.9,1095.8,6.2484]
[1610335851933,4.00959,1095.9,1093.9,0.27933806]
[1610335852133,4.00959,1094.7,1093.9,4.00959]
[1610335852331,4.00959,1094.7,1093.0,0.55904078]
[1610335852332,1.7378,1095.9,1092.5,1.67715421]
[1610335852532,1.7378,1095.9,1092.5,3.49185421]
[1610335852731,1.7378,1095.9,1092.5,1.8147]
[1610335853532,0.94335,1095.3,1092.5,1.8147]
[1610335853733,2.76915,1095.3,1092.5,1.8147]
[1610335853934,4.89595,1095.3,1092.5,1.8147]
[1610335854134,4.00959,1092.6,1092.5,1.8147]
[1610335854633,1.6572,1094.9,1091.8,6.2973]
[1610335854831,1.6572,1094.9,1091.8,7.9395]
[1610335855032,0.94335,1093.5,1091.8,7.9395]
[1610335855434,1.8181,1093.7,1091.8,1.6422]
[1610335855632,1.8181,1093.7,1090.2,1.6799584]
[1610335855833,1.8181,1093.7,1091.8,1.521]
[1610335856234,4.00959,1091.9,1091.8,1.521]
[1610335856436,10.8181,1093.7,1091.8,1.521]
[1610335856936,1.8181,1093.7,1091.8,2.2991]
[1610335857139,1.8181,1093.7,1089.7,6.0633]
[1610335857336,10.8181,1093.7,1089.7,6.0633]
[1610335858137,4.00959,1090.3,1089.7,6.0633]
[1610335858336,9.0,1093.7,1089.7,6.0633]
[1610335858537,10.5825,1093.7,1089.7,7.709]
[1610335859037,1.5825,1093.7,1089.7,7.709]
[1610335859237,0.9155,1092.3,1089.7,7.709]
[1610335859439,0.9155,1092.3,1089.7,1.6457]
[1610335860239,1.0,1090.3,1089.7,1.6457]
[1610335860438,0.9155,1092.3,1089.7,1.6457]
[1610335861038,2.0037,1093.4,1089.7,1.6457]
[1610335861639,3.8505,1093.4,1089.7,1.6457]
[1610335861839,2.0037,1093.4,1089.7,1.6457]
[1610335862141,6.01329,1093.4,1091.9,4.00959]
[1610335862340,6.01329,1093.4,1091.9,5.62219]
[1610335862540,4.00959,1093.4,1091.9,5.62219]
[1610335862741,1.8442,1094.5,1091.9,5.62219]
[1610335862941,14.89975655,1096.5,1091.9,5.62219]
[1610335862942,13.77174655,1096.5,1091.9,5.62219]
[1610335863142,13.4861399,1096.1,1091.9,5.62219]
[1610335863642,2.1079,1096.1,1091.9,5.62219]
[1610335864243,2.1079,1096.1,1095.9,6.15589]
[1610335864442,2.1079,1096.1,1095.9,2.1463]
[1610335864643,14.02256739,1098.2,1095.9,2.1463]
[1610335864845,14.0691187,1098.5,1095.9,2.1463]
[1610335865243,16.21233143,1099.2,1095.9,2.1463]
[1610335865244,14.10832453,1098.9,1095.9,2.1463]
[1610335865443,14.10832453,1098.9,1095.6,2.4938]
[1610335865643,16.36402453,1098.9,1095.6,2.4938]
[1610335866244,4.00959,1097.4,1096.7,4.00959]
[1610335866444,6.45329,1097.4,1096.7,4.00959]
[1610335866644,6.45329,1097.4,1095.6,2.4938]
[1610335867045,1.8283,1098.3,1095.6,2.4938]
[1610335867247,1.7382,1097.4,1095.6,2.4938]
[1610335868244,2.5111,1097.9,1097.3,4.00959]
[1610335868644,2.5111,1097.9,1097.3,5.67059]
[1610335869444,1.0,1097.4,1097.3,5.67059]
[1610335870548,1.0,1097.4,1097.3,4.13059]
[1610335870948,1.0,1097.4,1097.3,2.46959]
[1610335872754,2.0,1097.4,1097.3,2.46959]
[1610335874155,2.0104,1098.3,1097.3,2.46959]
[1610335874356,2.0104,1098.3,1096.9,2.3946]
[1610335874357,2.0104,1098.3,1098.2,4.00959]
[1610335874756,3.8366,1098.3,1098.2,4.00959]
[1610335874958,2.0403,1098.3,1098.2,5.83719]
[1610335875156,0.2141,1098.3,1098.2,5.83719]
[1610335875356,75.3877,1098.6,1098.2,5.83719]
[1610335875756,1.8027,1099.2,1098.2,5.83719]
[1610335875957,1.8027,1099.2,1098.2,4.00959]
[1610335876157,1.8416,1100.5,1098.2,4.00959]
[1610335876359,4.00959,1100.1,1098.0,2.324]
[1610335876559,6.14759,1100.1,1098.0,2.324]
[1610335877060,2.138,1100.1,1098.0,2.324]
[1610335877659,2.138,1100.1,1098.0,2.364]
[1610335878465,2.138,1100.1,1100.0,4.00959]
[1610335878864,2.138,1100.1,1100.0,3.63959]
[1610335880766,4.00959,1100.9,1100.0,3.63959]
[1610335881366,13.46688689,1101.2,1100.0,3.63959]
[1610335881367,13.46688689,1101.2,1100.0,5.90709]
[1610335881767,1.8092,1101.5,1100.0,5.90709]
[1610335881768,15.27734198,1101.5,1100.0,5.90709]
[1610335881969,13.46364152,1101.6,1100.0,5.90709]
[1610335882472,13.46364152,1101.6,1100.0,2.2675]
[1610335882671,13.44565206,1101.7,1100.0,2.2675]
[1610335883070,15.26395206,1101.7,1100.0,2.2675]
[1610335883270,1.8183,1101.7,1100.0,2.2675]
[1610335883470,67.1632,1102.0,1100.0,2.2675]
[1610335884471,4.00959,1101.4,1100.7,4.00959]
[1610335884872,6.42329,1101.4,1100.7,4.00959]
[1610335885072,6.42329,1101.4,1100.0,2.2675]
[1610335886373,2.4137,1101.4,1099.6,1.7685]
[1610335886574,2.4137,1101.4,1099.5,72.6751]
[1610335886874,10.8352,1101.4,1098.9,1.7791]
[1610335887077,2.4137,1101.4,1097.7,5.85]
[1610335888174,30.0,1101.3,1097.7,5.85]
[1610335888374,4.00959,1098.1,1097.7,5.85]
[1610335889176,4.00959,1098.1,1096.4,5.8676]
[1610335889677,6.08609,1098.1,1096.4,5.8676]
[1610335890476,4.00959,1096.5,1096.4,5.8676]
[1610335891279,4.00959,1096.5,1095.8,0.6]
[1610335891680,5.67539,1096.5,1093.0,0.27954169]
[1610335891880,5.67539,1096.5,1095.5,65.1918]
[1610335892083,5.67539,1096.5,1092.7,0.27966414]
[1610335892482,4.00959,1094.9,1092.8,0.27961126]
[1610335892682,4.00959,1094.9,1092.5,6.31357342]
[1610335892885,4.00959,1094.9,1093.1,1.71933015]
[1610335893082,4.00959,1094.9,1093.1,3.62843015]
[1610335893683,4.00959,1094.9,1093.1,1.6882]
[1610335893888,4.00959,1094.9,1091.6,0.27994763]
[1610335894082,6.00789,1094.9,1091.6,0.27994763]
[1610335894282,6.00789,1094.9,1092.7,0.047]
[1610335894485,1.9983,1094.9,1092.7,1.8231]
[1610335895082,1.7837,1095.6,1092.7,1.8231]
[1610335896483,4.00959,1093.9,1092.7,1.8231]
[1610335897482,4.00959,1093.9,1091.2,5.8246]
[1610335897882,5.68379,1093.9,1091.2,5.8246]
[1610335898484,1.6742,1093.9,1091.4,4.00959]
[1610335898686,11.0565,1093.9,1091.4,6.33439]
[1610335898885,1.6742,1093.9,1091.4,6.33439]
[1610335899485,1.6742,1093.9,1091.4,2.3248]
[1610335899687,1.6742,1093.9,1091.4,2.0484]
[1610335900487,4.00959,1092.0,1091.7,4.00959]
[1610335900689,1.6742,1093.9,1091.7,4.00959]
[1610335900887,1.8391,1094.2,1091.7,6.26059]
[1610335901287,1.8391,1094.2,1091.7,2.251]
[1610335901689,1.8391,1094.2,1091.4,2.0484]
[1610335901888,10.8391,1094.2,1091.7,1.5883]
[1610335902289,32.0065,1094.1,1091.7,1.5883]
[1610335902489,4.00959,1091.8,1091.7,0.937]
[1610335902688,5.84259,1091.8,1091.7,0.5389]
[1610335903089,30.0,1093.3,1091.7,0.0668]
[1610335903489,39.0,1093.3,1090.0,1.9675]
[1610335903689,0.91593,1091.8,1091.7,0.3229]
[1610335903889,0.91593,1091.8,1088.0,0.84202368]
[1610335904089,0.91593,1091.8,1087.8,0.56158529]
[1610335904289,0.91593,1091.8,1087.7,0.84237793]
[1610335904290,0.91593,1091.8,1087.6,0.56170545]
[1610335904489,4.00959,1090.0,1087.6,0.56170545]
[1610335904690,4.00959,1090.0,1087.4,0.56182912]
[1610335905089,4.00959,1090.0,1087.1,0.56210601]
[1610335905490,4.00959,1090.0,1087.1,2.43400601]
[1610335905690,5.84999,1090.0,1087.1,1.8719]
[1610335906393,4.00959,1087.9,1087.1,3.6928]
[1610335906593,30.0,1090.2,1087.1,3.6928]
[1610335906794,2.4133,1089.6,1087.1,1.8719]
[1610335906994,30.0,1089.5,1087.1,1.8719]
[1610335907395,2.4133,1089.6,1087.1,1.8719]
[1610335907594,4.2319,1089.6,1087.1,1.8719]
[1610335908195,73.4907,1089.0,1087.1,1.8719]
[1610335908398,4.00959,1087.7,1087.1,1.8719]
[1610335908796,5.56629,1087.7,1087.1,1.8719]
[1610335908996,5.56629,1087.7,1086.8,0.9762554]
[1610335909196,5.56629,1087.7,1086.8,0.5278554]
[1610335909397,7.39469,1087.7,1086.8,5.54e-05]
[1610335909997,5.83799,1087.7,1086.8,5.54e-05]
[1610335910598,4.00959,1086.9,1085.0,77.65756796]
[1610335910798,31.8284,1087.7,1085.0,77.65756796]
[1610335911001,30.0,1086.8,1085.0,79.79566796]
[1610335911200,1.8284,1087.7,1085.0,79.79566796]
[1610335911399,30.0,1086.9,1085.0,79.79566796]
[1610335911801,1.8417,1086.9,1085.0,2.1381]
[1610335912000,1.8417,1086.9,1083.2,76.57691022]
[1610335912201,1.8417,1086.9,1083.2,76.2952]
[1610335912400,62.7877,1086.2,1082.7,6.0574]
[1610335912802,4.00959,1085.4,1082.7,6.0574]
[1610335913202,62.7877,1086.2,1082.7,8.3237]
[1610335914805,10.0953,1085.1,1082.7,8.3237]
[1610335915004,1.8354,1086.4,1084.0,4.00959]
[1610335915205,1.8354,1086.4,1084.0,5.77749]
[1610335916004,1.8354,1086.4,1084.0,1.7679]
[1610335916405,12.16392602,1088.2,1084.0,1.7679]
[1610335916805,12.17758485,1088.4,1084.0,1.7679]
[1610335917005,12.17758485,1088.4,1086.3,4.00959]
[1610335917207,12.215344,1088.7,1086.3,4.00959]
[1610335917409,12.215344,1088.7,1086.3,1.83019]
[1610335917609,1.8125,1089.1,1086.3,1.83019]
[1610335917812,12.19195651,1088.9,1086.3,1.83019]
[1610335918411,14.31365651,1088.9,1086.3,1.83019]
[1610335918611,2.1217,1088.9,1086.3,1.83019]
[1610335919012,3.9437,1088.9,1086.3,1.83019]
[1610335919614,4.00959,1088.5,1087.4,4.00959]
[1610335920216,1.40912399,1088.8,1087.4,4.00959]
[1610335920414,1.40912399,1088.8,1087.4,5.77889]
[1610335921016,1.822,1088.9,1087.4,5.77889]
[1610335921619,1.822,1088.9,1088.3,4.00959]
[1610335921819,1.8469,1089.1,1088.3,5.94109]
[1610335922420,12.39306997,1090.9,1088.3,5.94109]
[1610335922720,12.68807283,1091.5,1088.3,5.94109]
[1610335923121,12.69842092,1091.6,1088.3,5.94109]
[1610335923521,12.66712467,1091.5,1088.3,5.94109]
[1610335923720,12.66712467,1091.5,1089.8,4.00959]
[1610335923922,1.40672592,1091.4,1089.8,4.00959]
[1610335925121,1.40598076,1092.0,1089.8,4.00959]
[1610335925524,1.40598076,1092.0,1089.8,6.22149]
[1610335925722,1.40598076,1092.0,1091.1,4.00959]
[1610335925925,1.40598076,1092.0,1091.1,5.98909]
[1610335926323,4.00959,1092.7,1091.1,5.98909]
[1610335926524,1.8207,1093.8,1091.1,5.98909]
[1610335926723,13.04971725,1094.4,1091.1,5.98909]
[1610335926925,65.2226,1093.0,1091.1,5.98909]
[1610335927727,67.0446,1093.0,1092.3,4.00959]
[1610335927926,1.40422909,1092.9,1092.3,5.55799]
[1610335928526,1.40422909,1092.9,1091.1,1.9795]
[1610335929728,1.40422909,1092.9,1091.9,5.91759]
[1610335929928,3.24622909,1092.9,1091.9,5.91759]
[1610335930431,3.24622909,1092.9,1091.9,5.77889]
[1610335930631,1.842,1092.9,1091.9,3.95389]
[1610335930830,65.2226,1093.0,1091.9,2.26979]
[1610335931031,65.2226,1093.0,1091.9,1.35009]
[1610335931631,65.2226,1093.0,1092.5,4.00959]
[1610335931834,65.2226,1093.0,1091.9,1.35009]
[1610335932031,67.2353,1093.0,1091.9,1.35009]
[1610335932631,67.2353,1093.0,1091.9,1.15589]
[1610335932831,67.2353,1093.0,1091.9,1.02059]
[1610335933234,67.2353,1093.0,1091.9,9e-05]
[1610335933634,4.00959,1092.6,1092.1,4.00959]
[1610335934236,4.00959,1092.6,1091.9,9e-05]
[1610335934634,4.00959,1092.6,1091.1,1.9795]
[1610335934834,4.00959,1092.6,1089.9,5.9687]
[1610335935635,4.00959,1091.7,1091.1,4.00959]
[1610335935834,4.00959,1091.7,1089.9,5.9687]
[1610335936636,6.17009,1091.7,1089.9,5.9687]
[1610335936838,6.17009,1091.7,1088.7,72.9097]
[1610335937638,4.00959,1089.3,1088.7,72.9097]
[1610335937839,5.71989,1089.3,1087.0,6.263]
[1610335939440,1.40772823,1089.2,1087.0,6.263]
[1610335939641,4.00959,1087.1,1087.0,6.263]
[1610335940840,4.00959,1087.1,1081.9,1.77719814]
[1610335941040,4.00959,1087.1,1083.0,0.56343179]
[1610335941241,4.00959,1087.1,1082.7,0.84551668]
[1610335941642,1.6168,1087.4,1084.9,4.00959]
[1610335942043,1.6168,1087.4,1084.9,5.79489]
[1610335942444,1.6168,1087.4,1084.9,1.7853]
[1610335942843,76.8482,1087.3,1084.9,1.7853]
[1610335943644,4.00959,1086.5,1085.2,4.00959]
[1610335943844,4.00959,1086.5,1084.9,1.7853]
[1610335945346,4.00959,1086.5,1081.6,1.6924555]
[1610335945347,4.00959,1086.5,1081.6,0.84642386]
[1610335945745,4.00959,1084.9,1084.3,4.00959]
[1610335945944,1.6246,1086.6,1081.3,0.84664715]
[1610335945945,1.5101,1086.2,1081.3,0.84664715]
[1610335946244,1.5101,1086.2,1082.3,7.9901]
[1610335947647,4.00959,1083.8,1083.1,4.00959]
[1610335947848,4.00959,1083.8,1083.1,5.84109]
[1610335948049,6.42069,1083.8,1082.3,7.9901]
[1610335948448,6.42069,1083.8,1082.3,7.5901]
[1610335949049,6.42069,1083.8,1082.3,1.6995]
[1610335949250,6.42069,1083.8,1080.0,0.84770701]
[1610335949449,0.95332,1083.6,1079.3,1.30998718]
[1610335949650,0.95332,1083.6,1064.2,33.995]
[1610335949651,4.00959,1081.4,1080.5,4.00959]
[1610335949854,0.4,1082.3,1080.5,4.00959]
[1610335950050,2.5136,1083.3,1080.5,4.00959]
[1610335950250,2.5136,1083.3,1080.5,5.89269]
[1610335950451,2.5136,1083.3,1080.5,1.8831]
[1610335950650,4.3671,1083.3,1080.5,1.8831]
[1610335951051,2.5136,1083.3,1080.5,1.8831]
[1610335951250,2.5136,1083.3,1080.5,1.5364]
[1610335951653,0.9234,1083.0,1080.5,1.5364]
[1610335951853,2.7739,1083.0,1080.5,1.5364]
[1610335953254,4.6063,1083.0,1080.5,1.5364]
[1610335953655,4.00959,1080.6,1080.5,1.5364]
[1610335954456,4.00959,1080.6,1077.7,0.28309809]
[1610335954655,4.00959,1080.6,1077.7,1.8752]
[1610335955056,4.00959,1080.6,1080.3,166.4472]
[1610335955255,72.562,1080.4,1077.5,0.28313201]
[1610335955456,72.562,1080.4,1077.4,0.28316787]
[1610335955657,72.562,1080.4,1078.3,4.00959]
[1610335955658,4.00959,1079.5,1078.3,4.00959]
[1610335955856,4.00959,1079.5,1077.2,0.28320804]
[1610335956057,4.00959,1079.5,1077.1,1.58392172]
[1610335956058,4.00959,1079.5,1077.1,1.01750563]
[1610335957663,4.00959,1079.2,1077.7,4.00959]
[1610335957862,4.00959,1079.2,1077.1,1.01750563]
[1610335959261,4.00959,1079.2,1076.0,67.1693]
[1610335959661,4.00959,1078.1,1077.1,4.00959]
[1610335959860,1.0,1079.5,1076.0,67.1693]